lending/lending_fUSD_20260206
["ID","MTS","AMOUNT","RATE_DAILY","PERIOD"]
[404658156,1770388249806,-169.28,0.000427,14]
[404658157,1770388249816,-1000.0,0.00042716,120]
[404658158,1770388249825,-1000.0,0.00042716,120]
[404658159,1770388249835,-1000.0,0.00042716,120]
[404658160,1770388249844,-1000.0,0.00042716,120]
[404658161,1770388249853,-651.342,0.00042716,120]
[404658162,1770388249862,-1000.0,0.00042725,30]
[404658163,1770388249871,-799.0,0.0004274,120]
[404658164,1770388249881,-151.0,0.00042762,120]
[404658165,1770388249890,-2662.59743842,0.00042763,30]
[404658166,1770388266896,600.0,0.00015068,120]
[404658167,1770388267057,600.0,0.00020863,120]
[404658168,1770388267169,600.0,0.00027476,120]
[404658169,1770388267270,600.0,0.00027476,120]
[404658170,1770388267383,600.0,0.00027476,120]
[404658171,1770388329330,500.0,0.00044111,30]
[404658172,1770388330276,500.0,0.00044111,30]
[404658173,1770388330890,500.0,0.00044111,30]
[404658174,1770388331539,500.0,0.00044111,30]
[404658175,1770388332381,500.0,0.00044111,30]
[404658177,1770388340147,478.922499,0.00010223,2]
[404658180,1770388421833,3367.7,0.00035616,120]
[404658181,1770388458908,539.92364468,0.00010175,2]
[404658182,1770388470208,2172.92831345,0.00010175,2]
[404658183,1770388588821,-287.82,0.000102,2]
[404658184,1770388588851,-500.0,0.00010247,2]
[404658185,1770388588881,-150.0,0.00010247,2]
[404658186,1770388589214,359.94909644,0.00010175,2]
[404658187,1770388590355,1670.39794602,0.00010175,2]
[404658189,1770388680335,198.96874357,0.00010175,2]
[404658190,1770388685980,-300.0,0.00010272,2]
[404658191,1770388686007,-300.0,0.00010272,2]
[404658192,1770388700730,294.06880404,0.00010175,2]
[404658193,1770388711064,3505.94119596,0.00010175,2]
[404658194,1770388711092,5000.01,0.00010175,2]
[404658195,1770388711128,5000.01,0.00010175,2]
[404658196,1770388711153,5000.01,0.00010175,2]
[404658197,1770388711177,5000.01,0.00010175,2]
[404658198,1770388711206,10000.01,0.00010175,2]
[404658199,1770388711232,10000.01,0.00010175,2]
[404658200,1770388711258,10000.01,0.00010175,2]
[404658202,1770388814443,557.31,9.497e-05,2]
[404658203,1770388893062,-942.493123,9.74e-05,2]
[404658204,1770388893097,-231.0,9.789e-05,2]
[404658205,1770388893135,-225.79,9.839e-05,2]
[404658206,1770388893170,-2341.85222944,0.00010075,2]
[404658207,1770388893205,-856.94720698,0.00010102,2]
[404658208,1770388900216,-803.84488116,0.00010102,2]
[404658209,1770388900254,-239.9660643,0.00010102,2]
[404658210,1770388900288,-2782.43280163,0.0001011,2]
[404658211,1770388900322,-150.0,0.00010147,2]
[404658212,1770388900357,-150.0,0.00010147,2]
[404658213,1770388903304,-2662.03951524,0.00010165,2]
[404658214,1770388903338,-606.75264578,0.00010165,2]
[404658215,1770388903371,-1200.0,0.00010173,2]
[404658216,1770388903411,-150.0,0.00010174,2]
[404658217,1770388903445,-300.0,0.00010174,2]
[404658218,1770389014546,209.57,9.463e-05,2]
[404658219,1770389071987,2344.21329545,9.373e-05,2]
[404658220,1770389072009,482.16670455,9.373e-05,2]
[404658221,1770389123820,500.0,9.208e-05,2]
[404658222,1770389212978,262.57,9.5e-05,2]
[404658223,1770389302480,1866.3565909,9.255e-05,2]
[404658224,1770389302504,3111.09329545,9.255e-05,2]
[404658225,1770389302527,3111.09329545,9.255e-05,2]
[404658226,1770389302550,3111.09329545,9.255e-05,2]
[404658227,1770389302576,3111.09329545,9.255e-05,2]
[404658228,1770389302599,3111.09329545,9.255e-05,2]
[404658229,1770389302625,3111.09329545,9.255e-05,2]
[404658230,1770389302649,3111.09329545,9.255e-05,2]
[404658231,1770389302672,3111.09329545,9.255e-05,2]
[404658232,1770389330962,160.0,0.00035616,120]
[404658245,1770389431802,-1367.28772136,9.032e-05,2]
[404658246,1770389431833,-4167.57227864,9.032e-05,2]
[404658247,1770389431844,-2699.83331744,9.032e-05,2]
[404658248,1770389431857,-303.93505193,9.032e-05,2]
[404658249,1770389431870,-16102.90163063,9.032e-05,2]
[404658250,1770389431881,-3524.82,9.142e-05,2]
[404658251,1770389431893,-250.0,9.142e-05,2]
[404658252,1770389431904,-523.59681009,9.142e-05,2]
[404658253,1770389431914,-226.0,9.142e-05,2]
[404658254,1770389431924,-304.5488411,9.21e-05,2]
[404658255,1770389431935,-300.0,9.254e-05,2]
[404658256,1770389431946,-300.0,9.254e-05,2]
[404658257,1770389431956,-1200.0,9.254e-05,2]
[404658258,1770389431966,-50002.4270455,9.255e-05,2]
[404658259,1770389431977,-172.1757342,9.255e-05,2]
[404658260,1770389431988,-166.66,9.488e-05,2]
[404658261,1770389431998,-172.17573419,9.505e-05,2]
[404658262,1770389432009,-500.0,9.578e-05,2]
[404658263,1770389432020,-300.0,9.621e-05,2]
[404658264,1770389432031,-300.0,9.754e-05,2]
[404658265,1770389432041,-300.0,9.754e-05,2]
[404658266,1770389432052,-300.0,9.754e-05,2]
[404658267,1770389432062,-172.17573419,9.754e-05,2]
[404658268,1770389432074,-166.66,9.802e-05,2]
[404658269,1770389432085,-1043.79,9.918e-05,2]
[404658270,1770389432097,-2664.35,9.974e-05,2]
[404658271,1770389432107,-2251.81221339,9.974e-05,2]
[404658272,1770389432118,-300.0,9.974e-05,2]
[404658273,1770389432129,-300.0,9.974e-05,2]
[404658274,1770389432139,-196.04586936,9.975e-05,2]
[404658275,1770389432151,-200.37901009,9.975e-05,2]
[404658276,1770389432162,-198.96874357,9.975e-05,2]
[404658277,1770389432173,-159.9773762,9.975e-05,2]
[404658278,1770389432183,-19020.70110148,0.00010014,2]
[404658279,1770389432195,-250.0,0.00010056,2]
[404658280,1770389432205,-500.0,0.00010056,2]
[404658281,1770389432215,-465.75379457,0.00010064,2]
[404658284,1770389432225,-465.75379457,0.00010064,2]
[404658286,1770389432236,-151.0,0.00010071,2]
[404658288,1770389432246,-500.0,0.00010073,2]
[404658289,1770389432256,-328.72851321,0.00010073,2]
[404658290,1770389432267,-1118.56688856,0.00010073,2]
[404658291,1770389432281,-1118.56688856,0.00010073,2]
[404658292,1770389432292,-1118.56688856,0.00010073,2]
[404658293,1770389432302,-1118.56688856,0.00010073,2]
[404658294,1770389432313,-1118.56688856,0.00010073,2]
[404658295,1770389432323,-1118.56688856,0.00010073,2]
[404658296,1770389432334,-1118.56688856,0.00010073,2]
[404658297,1770389432344,-1118.56688856,0.00010073,2]
[404658298,1770389432354,-1118.56688856,0.00010073,2]
[404658299,1770389432365,-1118.56688856,0.00010073,2]
[404658300,1770389432375,-1118.56688856,0.00010073,2]
[404658301,1770389432385,-1118.56688856,0.00010073,2]
[404658302,1770389432396,-1118.56688856,0.00010073,2]
[404658303,1770389432409,-1118.56688856,0.00010073,2]
[404658304,1770389432419,-1118.56688856,0.00010073,2]
[404658305,1770389432429,-1118.56688856,0.00010073,2]
[404658306,1770389432440,-1118.56688856,0.00010073,2]
[404658307,1770389432451,-1118.56688856,0.00010073,2]
[404658308,1770389432461,-1118.56688856,0.00010073,2]
[404658309,1770389432472,-1118.56688856,0.00010073,2]
[404658310,1770389432485,-1118.56688856,0.00010073,2]
[404658311,1770389432496,-1118.56688856,0.00010073,2]
[404658312,1770389432507,-1118.56688856,0.00010073,2]
[404658313,1770389432518,-1118.56688856,0.00010073,2]
[404658314,1770389432529,-1118.56688856,0.00010073,2]
[404658315,1770389432539,-1118.56688856,0.00010073,2]
[404658316,1770389432549,-1118.56688856,0.00010073,2]
[404658317,1770389432559,-1118.56688856,0.00010073,2]
[404658318,1770389432570,-1118.56688856,0.00010073,2]
[404658319,1770389432580,-1118.56688856,0.00010073,2]
[404658320,1770389432591,-1118.56688856,0.00010073,2]
[404658321,1770389432602,-1118.56688856,0.00010073,2]
[404658322,1770389432613,-1118.56688856,0.00010073,2]
[404658323,1770389432623,-1118.56688856,0.00010073,2]
[404658324,1770389432634,-1118.56688856,0.00010073,2]
[404658325,1770389432645,-1118.56688856,0.00010073,2]
[404658326,1770389432655,-1118.56688856,0.00010073,2]
[404658327,1770389432666,-1118.56688856,0.00010073,2]
[404658328,1770389432676,-1118.56688856,0.00010073,2]
[404658329,1770389432688,-1118.56688856,0.00010073,2]
[404658330,1770389432699,-1118.56688856,0.00010073,2]
[404658331,1770389432710,-1118.56688856,0.00010073,2]
[404658332,1770389432720,-1118.56688856,0.00010073,2]
[404658333,1770389432731,-1118.56688856,0.00010073,2]
[404658334,1770389432741,-1118.56688856,0.00010073,2]
[404658335,1770389432751,-161.66036519,0.00010073,2]
[404658336,1770389432761,-1098.22930877,0.00010073,2]
[404658337,1770389432771,-1098.22930877,0.00010073,2]
[404658338,1770389432782,-1098.22930877,0.00010073,2]
[404658339,1770389432792,-1098.22930877,0.00010073,2]
[404658340,1770389432802,-1098.22930877,0.00010073,2]
[404658341,1770389432812,-1098.22930877,0.00010073,2]
[404658342,1770389432822,-1098.22930877,0.00010073,2]
[404658343,1770389432833,-1098.22930877,0.00010073,2]
[404658344,1770389432843,-1098.22930877,0.00010073,2]
[404658345,1770389432854,-1098.22930877,0.00010073,2]
[404658346,1770389432865,-1098.22930877,0.00010073,2]
[404658347,1770389432875,-1098.22930877,0.00010073,2]
[404658348,1770389432885,-1098.22930877,0.00010073,2]
[404658349,1770389432895,-1098.22930877,0.00010073,2]
[404658350,1770389432907,-1098.22930877,0.00010073,2]
[404658351,1770389432918,-1098.22930877,0.00010073,2]
[404658352,1770389432928,-1098.22930877,0.00010073,2]
[404658353,1770389432941,-1098.22930877,0.00010073,2]
[404658354,1770389432951,-1098.22930877,0.00010073,2]
[404658355,1770389432962,-1098.22930877,0.00010073,2]
[404658356,1770389432972,-1098.22930877,0.00010073,2]
[404658357,1770389432982,-1098.22930877,0.00010073,2]
[404658358,1770389432993,-1098.22930877,0.00010073,2]
[404658359,1770389433003,-1098.22930877,0.00010073,2]
[404658360,1770389433014,-1098.22930877,0.00010073,2]
[404658361,1770389433027,-1098.22930877,0.00010073,2]
[404658362,1770389433037,-1098.22930877,0.00010073,2]
[404658363,1770389433048,-1098.22930877,0.00010073,2]
[404658364,1770389433058,-1098.22930877,0.00010073,2]
[404658365,1770389433069,-1098.22930877,0.00010073,2]
[404658366,1770389433080,-1098.22930877,0.00010073,2]
[404658367,1770389433099,-1098.22930877,0.00010073,2]
[404658368,1770389433110,-1098.22930877,0.00010073,2]
[404658369,1770389433121,-500.0,0.00010073,2]
[404658370,1770389433132,-500.0,0.00010073,2]
[404658371,1770389433143,-386.67049732,0.00010073,2]
[404658372,1770389433153,-500.0,0.00010073,2]
[404658373,1770389433165,-500.0,0.00010073,2]
[404658374,1770389433175,-500.0,0.00010073,2]
[404658375,1770389433187,-500.0,0.00010073,2]
[404658376,1770389433201,-170.44876952,0.00010073,2]
[404658377,1770389433212,-500.0,0.00010073,2]
[404658378,1770389433498,-150.93090401,0.00010073,2]
[404658379,1770389433509,-1107.38121967,0.00010073,2]
[404658380,1770389433520,-1107.38121967,0.00010073,2]
[404658381,1770389433531,-1107.38121967,0.00010073,2]
[404658382,1770389433541,-1107.38121967,0.00010073,2]
[404658383,1770389433552,-1107.38121967,0.00010073,2]
[404658384,1770389433563,-1107.38121967,0.00010073,2]
[404658385,1770389433574,-1107.38121967,0.00010073,2]
[404658386,1770389433585,-1107.38121967,0.00010073,2]
[404658387,1770389433597,-1107.38121967,0.00010073,2]
[404658388,1770389433607,-1107.38121967,0.00010073,2]
[404658389,1770389433616,-1107.38121967,0.00010073,2]
[404658390,1770389433626,-1107.38121967,0.00010073,2]
[404658391,1770389433636,-150.0,0.00010073,2]
[404658392,1770389433646,-69713.07506113,0.00010074,2]
[404658393,1770389433659,-732.45,0.00010074,2]
[404658394,1770389433671,-2973.56683256,0.00010074,2]
[404658395,1770389433683,-389432.79772319,0.00010074,2]
[404658396,1770389433697,-21009.67175451,0.00010074,2]
[404658397,1770389433709,-109529.87612732,0.00010074,2]
[404658398,1770389433720,-263470.87540678,0.00010074,2]
[404658399,1770389433732,-1269.4135887,0.00010074,2]
[404658400,1770389433743,-648.82001335,0.00010074,2]
[404658401,1770389433755,-431.73880762,0.00010074,2]
[404658402,1770389433767,-42844.63999088,0.00010074,2]
[404658409,1770389437910,-157.13832457,9.975e-05,2]
[404658411,1770389437920,-150.0,0.00010046,2]
[404658413,1770389437930,-150.0,0.00010046,2]
[404658414,1770389437939,-681.40053848,0.00010074,2]
[404658415,1770389437954,-999.0,0.00010074,2]
[404658416,1770389437965,-4554.28500021,0.00010074,2]
[404658417,1770389437976,-13044.65866152,0.00010074,2]
[404658418,1770389438027,-3367.06848212,0.00010074,2]
[404658419,1770389438040,-735.000001,0.00010074,2]
[404658420,1770389438122,-1910811.24698521,0.00010074,2]
[404658421,1770389438135,-1578.01909163,0.00010074,2]
[404658438,1770389439968,-2721.59999992,0.00010074,2]
[404658440,1770389439979,-3031.455933,0.00010074,2]
[404658442,1770389439990,-580.37547837,0.00010074,2]
[404658443,1770389440001,-315.80819555,0.00010074,2]
[404658444,1770389440257,-655523.15632695,0.00010074,2]
[404658445,1770389440266,-7344.162,0.00010075,2]
[404658446,1770389440275,-2500.0,0.00010075,2]
[404658447,1770389440285,-150.0,0.00010101,2]
[404658448,1770389440295,-173.3814197,0.00010102,2]
[404658449,1770389440304,-166.66,0.00010115,2]
[404658450,1770389440314,-150.0,0.00010156,2]
[404658451,1770389440324,-151.0,0.00010169,2]
[404658452,1770389440334,-151.0,0.00010169,2]
[404658453,1770389440343,-151.0,0.00010169,2]
[404658454,1770389440352,-151.0,0.00010169,2]
[404658455,1770389440362,-151.0,0.00010169,2]
[404658456,1770389440371,-151.0,0.00010169,2]
[404658457,1770389440381,-153.37287127,0.00010169,2]
[404658458,1770389440391,-2412.212,0.00010174,2]
[404658459,1770389440401,-187.271,0.00010174,2]
[404658460,1770389440411,-420.0,0.00010179,2]
[404658461,1770389440420,-1680.0,0.00010179,2]
[404658462,1770389440430,-250.0,0.0001021,2]
[404658463,1770389440440,-151.0,0.00010272,2]
[404658464,1770389440455,-1000.0,0.00010275,2]
[404658465,1770389440464,-500.0,0.00010347,2]
[404658466,1770389440473,-568.36806518,0.00010373,2]
[404658467,1770389440485,-500.0,0.00010373,2]
[404658469,1770389440494,-500.66414486,0.00010373,2]
[404658471,1770389440503,-500.81812257,0.00010373,2]
[404658473,1770389440513,-501.24298873,0.00010373,2]
[404658475,1770389440522,-438.23075951,0.00010373,2]
[404658476,1770389440531,-500.0,0.00010373,2]
[404658478,1770389440541,-500.49245945,0.00010373,2]
[404658479,1770389440551,-501.74979912,0.00010373,2]
[404658480,1770389440564,-500.0,0.00010373,2]
[404658481,1770389440574,-500.70006677,0.00010373,2]
[404658482,1770389440584,-501.46941145,0.00010373,2]
[404658483,1770389440593,-500.55674805,0.00010373,2]
[404658484,1770389440603,-305.18354468,0.00010373,2]
[404658485,1770389440612,-500.82029329,0.00010373,2]
[404658486,1770389440621,-500.0,0.00010373,2]
[404658487,1770389440631,-500.0,0.00010373,2]
[404658488,1770389440640,-500.0,0.00010373,2]
[404658489,1770389440650,-500.55713691,0.00010373,2]
[404658490,1770389440659,-502.2748959,0.00010373,2]
[404658491,1770389440669,-207.3322894,0.00010373,2]
[404658492,1770389440679,-500.55427015,0.00010373,2]
[404658493,1770389440688,-500.0,0.00010373,2]
[404658494,1770389440700,-500.69332376,0.00010373,2]
[404658495,1770389440709,-422.94688137,0.00010373,2]
[404658496,1770389440719,-378.21435572,0.00010373,2]
[404658497,1770389440728,-856.45,0.00010373,2]
[404658498,1770389440737,-225.79,0.00010385,2]
[404658499,1770389440746,-166.66,0.00010428,2]
[404658500,1770389440755,-451.51338853,0.00010536,2]
[404658501,1770389440764,-241.00287784,0.00010536,2]
[404658502,1770389440774,-300.0,0.00010536,2]
[404658503,1770389440783,-500.0,0.00010621,2]
[404658504,1770389440792,-856.45,0.00010647,2]
[404658505,1770389440802,-166.66,0.00010741,2]
[404658506,1770389440811,-500.0,0.00010895,2]
[404658507,1770389440819,-1697.75,0.000109,2]
[404658508,1770389440829,-3477.6319317,0.000109,2]
[404658509,1770389440839,-503.2114152,0.00010921,2]
[404658510,1770389440848,-1000.0,0.00010921,2]
[404658511,1770389440857,-501.23794025,0.00010921,2]
[404658512,1770389440866,-1000.0,0.00010921,2]
[404658513,1770389440875,-500.0,0.00010921,2]
[404658514,1770389440885,-856.45,0.00010921,2]
[404658515,1770389440895,-225.79,0.00010932,2]
[404658516,1770389440904,-166.66,0.00011054,2]
[404658517,1770389440913,-255.0,0.0001108,2]
[404658518,1770389440923,-500.0,0.00011168,2]
[404658519,1770389440932,-856.45,0.00011195,2]
[404658520,1770389440941,-276.0,0.00011197,2]
[404658521,1770389440952,-2351.0,0.00011197,2]
[404658522,1770389440962,-9161.23,0.00011233,2]
[404658523,1770389440971,-5637.27,0.00011346,2]
[404658524,1770389440980,-500.0,0.00011442,2]
[404658525,1770389440990,-856.45,0.00011468,2]
[404658526,1770389440999,-1500.0,0.00011468,2]
[404658527,1770389441009,-576.29863876,0.00011468,2]
[404658528,1770389441018,-225.79,0.00011479,2]
[404658529,1770389441028,-2251.81221339,0.00011624,2]
[404658530,1770389441037,-500.0,0.00011716,2]
[404658531,1770389441046,-856.45,0.00011742,2]
[404658532,1770389441055,-500.0,0.0001199,2]
[404658533,1770389441065,-856.45,0.00012016,2]
[404658534,1770389441073,-2000.0,0.00012016,2]
[404658535,1770389441082,-225.79,0.00012025,2]
[404658536,1770389441092,-250.0,0.00012079,2]
[404658537,1770389441101,-9999.99,0.00012087,2]
[404658538,1770389441110,-23559.75,0.00012087,2]
[404658539,1770389441120,-299.99,0.00012087,2]
[404658540,1770389441129,-150.99,0.00012087,2]
[404658541,1770389441138,-9999.99,0.00012087,2]
[404658542,1770389441147,-9999.99,0.00012087,2]
[404658543,1770389441157,-999.99,0.00012087,2]
[404658544,1770389441166,-346.96,0.00012087,2]
[404658545,1770389441175,-433.0,0.00012188,2]
[404658546,1770389441185,-500.0,0.00012264,2]
[404658547,1770389441194,-856.48,0.0001229,2]
[404658548,1770389441203,-3292.0,0.00012317,2]
[404658549,1770389441212,-2500.0,0.00012564,2]
[404658550,1770389441222,-225.79,0.00012572,2]
[404658551,1770389441231,-3000.0,0.00013112,2]
[404658552,1770389441241,-225.79,0.00013118,2]
[404658553,1770389441251,-2251.81221339,0.00013275,2]
[404658554,1770389441260,-736.0,0.00013407,2]
[404658555,1770389441269,-4609.0,0.00013549,2]
[404658556,1770389441278,-500.0,0.00013598,2]
[404658557,1770389441287,-1665.15653857,0.0001366,2]
[404658558,1770389441296,-225.79,0.00013665,2]
[404658559,1770389441305,-500.0,0.00013698,2]
[404658560,1770389441315,-500.0,0.00013698,2]
[404658561,1770389441324,-500.0,0.00013698,2]
[404658562,1770389441333,-500.0,0.00013698,2]
[404658563,1770389441342,-500.0,0.00013698,2]
[404658564,1770389441352,-500.0,0.00013698,2]
[404658565,1770389441362,-500.0,0.00013698,2]
[404658566,1770389441371,-500.0,0.00013698,2]
[404658567,1770389441380,-500.0,0.00013698,2]
[404658568,1770389441389,-500.0,0.00013698,2]
[404658569,1770389441399,-500.0,0.00013698,2]
[404658570,1770389441409,-500.0,0.00013698,2]
[404658571,1770389441419,-500.0,0.00013698,2]
[404658572,1770389441428,-500.0,0.00013698,2]
[404658573,1770389441437,-500.0,0.00013698,2]
[404658574,1770389441449,-500.0,0.00013698,2]
[404658575,1770389441458,-344.36366875,0.00013698,2]
[404658576,1770389441468,-500.0,0.00013698,2]
[404658577,1770389441478,-500.0,0.00013698,2]
[404658578,1770389441488,-500.0,0.00013698,2]
[404658579,1770389441497,-500.0,0.00013698,2]
[404658580,1770389441507,-500.0,0.00013698,2]
[404658581,1770389441516,-500.0,0.00013698,2]
[404658582,1770389441525,-500.0,0.00013698,2]
[404658583,1770389441536,-500.0,0.00013698,2]
[404658584,1770389441545,-500.0,0.00013698,2]
[404658585,1770389441554,-500.0,0.00013698,2]
[404658586,1770389441564,-343.52857332,0.00013698,2]
[404658587,1770389441573,-500.0,0.00013698,2]
[404658588,1770389441583,-500.0,0.00013698,2]
[404658589,1770389441593,-209.45197558,0.00013698,2]
[404658590,1770389441602,-500.0,0.00013698,2]
[404658591,1770389441612,-500.0,0.00013698,2]
[404658592,1770389441621,-500.0,0.00013698,2]
[404658593,1770389441631,-500.0,0.00013698,2]
[404658594,1770389441640,-500.0,0.00013698,2]
[404658595,1770389441650,-500.0,0.00013698,2]
[404658596,1770389441659,-500.0,0.00013698,2]
[404658597,1770389441669,-500.0,0.00013698,2]
[404658598,1770389441679,-500.0,0.00013698,2]
[404658599,1770389441688,-510.270546,0.00013698,2]
[404658600,1770389441698,-500.0,0.00013698,2]
[404658601,1770389441708,-500.0,0.00013698,2]
[404658602,1770389441718,-500.0,0.00013698,2]
[404658603,1770389441727,-500.0,0.00013698,2]
[404658604,1770389441736,-500.0,0.00013698,2]
[404658605,1770389441746,-500.0,0.00013698,2]
[404658606,1770389441755,-500.0,0.00013698,2]
[404658607,1770389441764,-500.0,0.00013698,2]
[404658608,1770389441774,-500.0,0.00013698,2]
[404658609,1770389441783,-500.0,0.00013698,2]
[404658610,1770389441792,-500.0,0.00013698,2]
[404658611,1770389441802,-500.0,0.00013698,2]
[404658612,1770389441811,-272.1278825,0.00013698,2]
[404658613,1770389441822,-500.0,0.00013698,2]
[404658614,1770389441832,-500.0,0.00013698,2]
[404658615,1770389441842,-500.0,0.00013698,2]
[404658616,1770389441852,-500.0,0.00013698,2]
[404658617,1770389441861,-500.0,0.00013698,2]
[404658618,1770389441870,-500.0,0.00013698,2]
[404658619,1770389441880,-628.10981545,0.00013698,2]
[404658620,1770389441889,-500.0,0.00013698,2]
[404658621,1770389441899,-500.0,0.00013698,2]
[404658622,1770389441909,-500.0,0.00013698,2]
[404658623,1770389441918,-500.0,0.00013698,2]
[404658624,1770389441928,-500.0,0.00013698,2]
[404658625,1770389441937,-500.0,0.00013698,2]
[404658626,1770389441950,-500.0,0.00013698,2]
[404658627,1770389441959,-500.0,0.00013698,2]
[404658628,1770389441969,-500.0,0.00013698,2]
[404658629,1770389441979,-500.0,0.00013698,2]
[404658630,1770389441988,-500.0,0.00013698,2]
[404658631,1770389441998,-500.0,0.00013698,2]
[404658632,1770389442007,-500.0,0.00013698,2]
[404658633,1770389442017,-500.0,0.00013698,2]
[404658634,1770389442026,-600.86,0.00013698,2]
[404658635,1770389442035,-522.54,0.00013698,2]
[404658636,1770389442046,-522.54,0.00013698,2]
[404658637,1770389442055,-522.54,0.00013698,2]
[404658638,1770389442065,-522.54,0.00013698,2]
[404658639,1770389442074,-522.54,0.00013698,2]
[404658640,1770389442083,-522.54,0.00013698,2]
[404658641,1770389442093,-522.54,0.00013698,2]
[404658642,1770389442103,-522.54,0.00013698,2]
[404658643,1770389442112,-522.54,0.00013698,2]
[404658644,1770389442121,-522.54,0.00013698,2]
[404658645,1770389442131,-522.54,0.00013698,2]
[404658646,1770389442140,-522.54,0.00013698,2]
[404658647,1770389442150,-522.54,0.00013698,2]
[404658648,1770389442159,-522.54,0.00013698,2]
[404658649,1770389442169,-522.54,0.00013698,2]
[404658650,1770389442178,-522.54,0.00013698,2]
[404658651,1770389442188,-522.54,0.00013698,2]
[404658652,1770389442199,-522.54,0.00013698,2]
[404658653,1770389442208,-522.54,0.00013698,2]
[404658654,1770389442218,-522.54,0.00013698,2]
[404658655,1770389442227,-522.54,0.00013698,2]
[404658656,1770389442237,-522.54,0.00013698,2]
[404658657,1770389442247,-522.54,0.00013698,2]
[404658658,1770389442257,-522.72,0.00013698,2]
[404658659,1770389442268,-500.0,0.00013698,2]
[404658660,1770389442278,-500.0,0.00013698,2]
[404658661,1770389442287,-245.91228722,0.00013698,2]
[404658662,1770389442298,-522.96240732,0.00013698,2]
[404658663,1770389442307,-500.0,0.00013698,2]
[404658664,1770389442317,-500.0,0.00013698,2]
[404658665,1770389442326,-500.0,0.00013698,2]
[404658666,1770389442336,-500.0,0.00013698,2]
[404658667,1770389442346,-500.0,0.00013698,2]
[404658668,1770389442355,-500.0,0.00013698,2]
[404658669,1770389442364,-500.0,0.00013698,2]
[404658670,1770389442373,-500.0,0.00013698,2]
[404658671,1770389442382,-500.0,0.00013698,2]
[404658672,1770389442391,-500.0,0.00013698,2]
[404658673,1770389442405,-508.28,0.00013698,2]
[404658674,1770389442416,-500.0,0.00013698,2]
[404658675,1770389442426,-500.0,0.00013698,2]
[404658676,1770389442435,-365.00732408,0.00013698,2]
[404658677,1770389442445,-719.26,0.00013698,2]
[404658678,1770389442455,-719.26,0.00013698,2]
[404658679,1770389442465,-719.26,0.00013698,2]
[404658680,1770389442475,-719.26,0.00013698,2]
[404658681,1770389442485,-719.26,0.00013698,2]
[404658682,1770389442495,-719.26,0.00013698,2]
[404658683,1770389442504,-719.26,0.00013698,2]
[404658684,1770389442513,-719.26,0.00013698,2]
[404658685,1770389442523,-719.26,0.00013698,2]
[404658686,1770389442532,-719.26,0.00013698,2]
[404658687,1770389442542,-719.26,0.00013698,2]
[404658688,1770389442551,-719.26,0.00013698,2]
[404658689,1770389442561,-719.26,0.00013698,2]
[404658690,1770389442571,-719.26,0.00013698,2]
[404658691,1770389442581,-719.26,0.00013698,2]
[404658692,1770389442590,-719.26,0.00013698,2]
[404658693,1770389442600,-719.26,0.00013698,2]
[404658694,1770389442610,-719.26,0.00013698,2]
[404658695,1770389442620,-719.26,0.00013698,2]
[404658696,1770389442631,-719.26,0.00013698,2]
[404658697,1770389442641,-719.26,0.00013698,2]
[404658700,1770389442651,-719.26,0.00013698,2]
[404658702,1770389442661,-719.26,0.00013698,2]
[404658703,1770389442671,-719.26,0.00013698,2]
[404658704,1770389442818,-500.0,0.00013698,2]
[404658705,1770389442832,-622.63893685,0.00013698,2]
[404658706,1770389442842,-500.0,0.00013698,2]
[404658707,1770389442852,-500.0,0.00013698,2]
[404658708,1770389442862,-500.0,0.00013698,2]
[404658709,1770389442872,-500.0,0.00013698,2]
[404658710,1770389442882,-500.0,0.00013698,2]